{"text_format":"1","workbook":"xlsx","n_sheets":3,"sheets":["Sheet1","Sheet2","Sheet3"],"not_rendered":{"charts":0,"images":0,"macros":1,"external_links":0,"defined_names":0,"comments":0,"pivot_tables":0},"unopened":[],"bounds":{"document_bytes":16777216,"sheet_cells":100000,"rows_first":2000,"rows_last":500,"rows_between":2000,"halvings":0,"cell_chars":16384,"cell_head_chars":4096},"cells_cut":0,"cells_raw":0,"read":"whole","date_system":"1900"}

{"sheet":"Sheet1","index":0,"n_rows":291,"n_cols":14,"rows_kept":291,"cut":false,"hidden":false,"merged":[]}
[null,null,null,null,null,null,null,null,null,null,{"$f":"TODAY()","v":"2018-02-02"},null,null,"تم الرد"]
[]
["م","وصف المعاملة","تاريخ المعاملة","ايام صلاحية المعاملة","تاريخ انتهاء المعاملة","عدد الايام المتبقية للمعاملة ","تم الرد في تاريخ ","الايام المتبقية"]
[1,"dfhgsdfhsdfjhdsjhwtejhrtutywerytwerytwerytwerytwerytwerywertywertyw","2018-01-30","5","2017-12-28",{"$f":"DATEDIF($K$1,K4,\"d\")+1","v":"1900-01-03"},"2018-01-18",{"$f":"IF(J4=0,\"\",IF(G4>0,$N$4,IF(G4=0,$M$4,\"\")))","v":"تم الرد"},null,{"$f":"IFERROR(L4,0)","v":2},{"$f":"C4+D4+0","v":"2018-02-04"},{"$f":"DATEDIF($K$1,K4,\"d\")","v":2},"لم يتم الرد","تم الرد"]
[2,"78675ftrwefsdagfasd","2018-01-31","6",{"$f":"C5+D5","v":"2018-02-06"},{"$f":"DATEDIF($K$1,K5,\"d\")+1","v":"1900-01-05"},null,"لم يتم الرد",null,{"$f":"IFERROR(L5,0)","v":4},"2018-02-06",4,"لم يتم الرد","تم الرد"]
[3,43567869779,"2018-01-31",3,"2018-02-03",{"$f":"DATEDIF($K$1,K6,\"d\")+1","v":"1900-01-02"},"2018-01-18","تم الرد",null,1,"2018-02-03",1,"لم يتم الرد","تم الرد"]
[4,"346578oujtyhrtgrfedq",null,null,"00:00:00",{"$error":"#NUM!"},null,"",null,0,"00:00:00",{"$error":"#NUM!"},"لم يتم الرد"]
[5,null,null,null,"00:00:00",{"$error":"#NUM!"},null,"",null,0,"00:00:00",{"$error":"#NUM!"},"لم يتم الرد"]
[6,null,null,null,"00:00:00",{"$error":"#NUM!"},null,"",null,0,"00:00:00",{"$error":"#NUM!"},"لم يتم الرد"]
[7,null,null,null,"00:00:00",{"$error":"#NUM!"},null,"",null,0,"00:00:00",{"$error":"#NUM!"},"لم يتم الرد"]
[8,null,null,null,"00:00:00",{"$error":"#NUM!"},null,"",null,0,"00:00:00",{"$error":"#NUM!"},"لم يتم الرد"]
[9,null,null,null,"00:00:00",{"$error":"#NUM!"},null,"",null,0,"00:00:00",{"$error":"#NUM!"},"لم يتم الرد"]
[10,null,null,null,"00:00:00",{"$error":"#NUM!"},null,"",null,0,"00:00:00",{"$error":"#NUM!"},"لم يتم الرد"]
[11,null,null,null,"00:00:00",{"$error":"#NUM!"},null,"",null,0,"00:00:00",{"$error":"#NUM!"},"لم يتم الرد"]
[12,null,null,null,"00:00:00",{"$error":"#NUM!"},null,"",null,0,"00:00:00",{"$error":"#NUM!"},"لم يتم الرد"]
[13,null,null,null,"00:00:00",{"$error":"#NUM!"},null,"",null,0,"00:00:00",{"$error":"#NUM!"},"لم يتم الرد"]
[14,null,null,null,"00:00:00",{"$error":"#NUM!"},null,"",null,0,"00:00:00",{"$error":"#NUM!"},"لم يتم الرد"]
[15,null,null,null,"00:00:00",{"$error":"#NUM!"},null,"",null,0,"00:00:00",{"$error":"#NUM!"},"لم يتم الرد"]
[16,null,null,null,"00:00:00",{"$error":"#NUM!"},null,"",null,0,"00:00:00",{"$error":"#NUM!"},"لم يتم الرد"]
[17,null,null,null,"00:00:00",{"$error":"#NUM!"},null,"",null,0,"00:00:00",{"$error":"#NUM!"},"لم يتم الرد"]
[18,null,null,null,"00:00:00",{"$error":"#NUM!"},null,"",null,0,"00:00:00",{"$error":"#NUM!"},"لم يتم الرد"]
[19,null,null,null,"00:00:00",{"$error":"#NUM!"},null,"",null,0,"00:00:00",{"$error":"#NUM!"},"لم يتم الرد"]
[20,null,null,null,"00:00:00",{"$error":"#NUM!"},null,"",null,0,"00:00:00",{"$error":"#NUM!"},"لم يتم الرد"]
[21,null,null,null,"00:00:00",{"$error":"#NUM!"},null,"",null,0,"00:00:00",{"$error":"#NUM!"},"لم يتم الرد"]
[22,null,null,null,"00:00:00",{"$error":"#NUM!"},null,"",null,0,"00:00:00",{"$error":"#NUM!"},"لم يتم الرد"]
[23,null,null,null,"00:00:00",{"$error":"#NUM!"},null,"",null,0,"00:00:00",{"$error":"#NUM!"},"لم يتم الرد"]
[24,null,null,null,"00:00:00",{"$error":"#NUM!"},null,"",null,0,"00:00:00",{"$error":"#NUM!"},"لم يتم الرد"]
[25,null,null,null,"00:00:00",{"$error":"#NUM!"},null,"",null,0,"00:00:00",{"$error":"#NUM!"},"لم يتم الرد"]
[26,null,null,null,"00:00:00",{"$error":"#NUM!"},null,"",null,0,"00:00:00",{"$error":"#NUM!"},"لم يتم الرد"]
[27,null,null,null,"00:00:00",{"$error":"#NUM!"},null,"",null,0,"00:00:00",{"$error":"#NUM!"},"لم يتم الرد"]
[28,null,null,null,"00:00:00",{"$error":"#NUM!"},null,"",null,0,"00:00:00",{"$error":"#NUM!"},"لم يتم الرد"]
[29,null,null,null,"00:00:00",{"$error":"#NUM!"},null,"",null,0,"00:00:00",{"$error":"#NUM!"},"لم يتم الرد"]
[30,null,null,null,"00:00:00",{"$error":"#NUM!"},null,"",null,0,"00:00:00",{"$error":"#NUM!"},"لم يتم الرد"]
[31,null,null,null,"00:00:00",{"$error":"#NUM!"},null,"",null,0,"00:00:00",{"$error":"#NUM!"},"لم يتم الرد"]
[32,null,null,null,"00:00:00",{"$error":"#NUM!"},null,"",null,0,"00:00:00",{"$error":"#NUM!"},"لم يتم الرد"]
[33,null,null,null,"00:00:00",{"$error":"#NUM!"},null,"",null,0,"00:00:00",{"$error":"#NUM!"},"لم يتم الرد"]
[34,null,null,null,"00:00:00",{"$error":"#NUM!"},null,"",null,0,"00:00:00",{"$error":"#NUM!"},"لم يتم الرد"]
[35,null,null,null,"00:00:00",{"$error":"#NUM!"},null,"",null,0,"00:00:00",{"$error":"#NUM!"},"لم يتم الرد"]
[36,null,null,null,"00:00:00",{"$error":"#NUM!"},null,"",null,0,"00:00:00",{"$error":"#NUM!"},"لم يتم الرد"]
[37,null,null,null,"00:00:00",{"$error":"#NUM!"},null,"",null,0,"00:00:00",{"$error":"#NUM!"},"لم يتم الرد"]
[38,null,null,null,"00:00:00",{"$error":"#NUM!"},null,"",null,0,"00:00:00",{"$error":"#NUM!"},"لم يتم الرد"]
[39,null,null,null,"00:00:00",{"$error":"#NUM!"},null,"",null,0,"00:00:00",{"$error":"#NUM!"},"لم يتم الرد"]
[40,null,null,null,"00:00:00",{"$error":"#NUM!"},null,"",null,0,"00:00:00",{"$error":"#NUM!"},"لم يتم الرد"]
[41,null,null,null,"00:00:00",{"$error":"#NUM!"},null,"",null,0,"00:00:00",{"$error":"#NUM!"},"لم يتم الرد"]
[42,null,null,null,"00:00:00",{"$error":"#NUM!"},null,"",null,0,"00:00:00",{"$error":"#NUM!"},"لم يتم الرد"]
[43,null,null,null,"00:00:00",{"$error":"#NUM!"},null,"",null,0,"00:00:00",{"$error":"#NUM!"},"لم يتم الرد"]
[44,null,null,null,"00:00:00",{"$error":"#NUM!"},null,"",null,0,"00:00:00",{"$error":"#NUM!"},"لم يتم الرد"]
[45,null,null,null,"00:00:00",{"$error":"#NUM!"},null,"",null,0,"00:00:00",{"$error":"#NUM!"},"لم يتم الرد"]
[46,null,null,null,"00:00:00",{"$error":"#NUM!"},null,"",null,0,"00:00:00",{"$error":"#NUM!"},"لم يتم الرد"]
[47,null,null,null,"00:00:00",{"$error":"#NUM!"},null,"",null,0,"00:00:00",{"$error":"#NUM!"},"لم يتم الرد"]
[48,null,null,null,"00:00:00",{"$error":"#NUM!"},null,"",null,0,"00:00:00",{"$error":"#NUM!"},"لم يتم الرد"]
[49,null,null,null,"00:00:00",{"$error":"#NUM!"},null,"",null,0,"00:00:00",{"$error":"#NUM!"},"لم يتم الرد"]
[50,null,null,null,"00:00:00",{"$error":"#NUM!"},null,"",null,0,"00:00:00",{"$error":"#NUM!"},"لم يتم الرد"]
[51,null,null,null,"00:00:00",{"$error":"#NUM!"},null,"",null,0,"00:00:00",{"$error":"#NUM!"},"لم يتم الرد"]
[52,null,null,null,"00:00:00",{"$error":"#NUM!"},null,"",null,0,"00:00:00",{"$error":"#NUM!"},"لم يتم الرد"]
[53,null,null,null,"00:00:00",{"$error":"#NUM!"},null,"",null,0,"00:00:00",{"$error":"#NUM!"},"لم يتم الرد"]
[54,null,null,null,"00:00:00",{"$error":"#NUM!"},null,"",null,0,"00:00:00",{"$error":"#NUM!"},"لم يتم الرد"]
[55,null,null,null,"00:00:00",{"$error":"#NUM!"},null,"",null,0,"00:00:00",{"$error":"#NUM!"},"لم يتم الرد"]
[56,null,null,null,"00:00:00",{"$error":"#NUM!"},null,"",null,0,"00:00:00",{"$error":"#NUM!"},"لم يتم الرد"]
[57,null,null,null,"00:00:00",{"$error":"#NUM!"},null,"",null,0,"00:00:00",{"$error":"#NUM!"},"لم يتم الرد"]
[58,null,null,null,"00:00:00",{"$error":"#NUM!"},null,"",null,0,"00:00:00",{"$error":"#NUM!"},"لم يتم الرد"]
[59,null,null,null,"00:00:00",{"$error":"#NUM!"},null,"",null,0,"00:00:00",{"$error":"#NUM!"},"لم يتم الرد"]
[60,null,null,null,"00:00:00",{"$error":"#NUM!"},null,"",null,0,"00:00:00",{"$error":"#NUM!"},"لم يتم الرد"]
[61,null,null,null,"00:00:00",{"$error":"#NUM!"},null,"",null,0,"00:00:00",{"$error":"#NUM!"},"لم يتم الرد"]
[62,null,null,null,"00:00:00",{"$error":"#NUM!"},null,"",null,0,"00:00:00",{"$error":"#NUM!"},"لم يتم الرد"]
[63,null,null,null,"00:00:00",{"$error":"#NUM!"},null,"",null,0,"00:00:00",{"$error":"#NUM!"},"لم يتم الرد"]
[64,null,null,null,"00:00:00",{"$error":"#NUM!"},null,"",null,0,"00:00:00",{"$error":"#NUM!"},"لم يتم الرد"]
[65,null,null,null,"00:00:00",{"$error":"#NUM!"},null,{"$f":"IF(J68=0,\"\",IF(G68>0,$N$4,IF(G68=0,$M$4,\"\")))","v":""},null,0,{"$f":"C68+D68+0","v":"00:00:00"},{"$f":"DATEDIF($K$1,K68,\"d\")","v":{"$error":"#NUM!"}},"لم يتم الرد"]
[66,null,null,null,{"$f":"C69+D69","v":"00:00:00"},{"$error":"#NUM!"},null,"",null,{"$f":"IFERROR(L69,0)","v":0},"00:00:00",{"$error":"#NUM!"},"لم يتم الرد"]
[67,null,null,null,"00:00:00",{"$f":"DATEDIF($K$1,K70,\"d\")+1","v":{"$error":"#NUM!"}},null,"",null,0,"00:00:00",{"$error":"#NUM!"},"لم يتم الرد"]
[68,null,null,null,"00:00:00",{"$error":"#NUM!"},null,"",null,0,"00:00:00",{"$error":"#NUM!"},"لم يتم الرد"]
[69,null,null,null,"00:00:00",{"$error":"#NUM!"},null,"",null,0,"00:00:00",{"$error":"#NUM!"},"لم يتم الرد"]
[70,null,null,null,"00:00:00",{"$error":"#NUM!"},null,"",null,0,"00:00:00",{"$error":"#NUM!"},"لم يتم الرد"]
[71,null,null,null,"00:00:00",{"$error":"#NUM!"},null,"",null,0,"00:00:00",{"$error":"#NUM!"},"لم يتم الرد"]
[72,null,null,null,"00:00:00",{"$error":"#NUM!"},null,"",null,0,"00:00:00",{"$error":"#NUM!"},"لم يتم الرد"]
[73,null,null,null,"00:00:00",{"$error":"#NUM!"},null,"",null,0,"00:00:00",{"$error":"#NUM!"},"لم يتم الرد"]
[74,null,null,null,"00:00:00",{"$error":"#NUM!"},null,"",null,0,"00:00:00",{"$error":"#NUM!"},"لم يتم الرد"]
[75,null,null,null,"00:00:00",{"$error":"#NUM!"},null,"",null,0,"00:00:00",{"$error":"#NUM!"},"لم يتم الرد"]
[76,null,null,null,"00:00:00",{"$error":"#NUM!"},null,"",null,0,"00:00:00",{"$error":"#NUM!"},"لم يتم الرد"]
[77,null,null,null,"00:00:00",{"$error":"#NUM!"},null,"",null,0,"00:00:00",{"$error":"#NUM!"},"لم يتم الرد"]
[78,null,null,null,"00:00:00",{"$error":"#NUM!"},null,"",null,0,"00:00:00",{"$error":"#NUM!"},"لم يتم الرد"]
[79,null,null,null,"00:00:00",{"$error":"#NUM!"},null,"",null,0,"00:00:00",{"$error":"#NUM!"},"لم يتم الرد"]
[80,null,null,null,"00:00:00",{"$error":"#NUM!"},null,"",null,0,"00:00:00",{"$error":"#NUM!"},"لم يتم الرد"]
[81,null,null,null,"00:00:00",{"$error":"#NUM!"},null,"",null,0,"00:00:00",{"$error":"#NUM!"},"لم يتم الرد"]
[82,null,null,null,"00:00:00",{"$error":"#NUM!"},null,"",null,0,"00:00:00",{"$error":"#NUM!"},"لم يتم الرد"]
[83,null,null,null,"00:00:00",{"$error":"#NUM!"},null,"",null,0,"00:00:00",{"$error":"#NUM!"},"لم يتم الرد"]
[84,null,null,null,"00:00:00",{"$error":"#NUM!"},null,"",null,0,"00:00:00",{"$error":"#NUM!"},"لم يتم الرد"]
[85,null,null,null,"00:00:00",{"$error":"#NUM!"},null,"",null,0,"00:00:00",{"$error":"#NUM!"},"لم يتم الرد"]
[86,null,null,null,"00:00:00",{"$error":"#NUM!"},null,"",null,0,"00:00:00",{"$error":"#NUM!"},"لم يتم الرد"]
[87,null,null,null,"00:00:00",{"$error":"#NUM!"},null,"",null,0,"00:00:00",{"$error":"#NUM!"},"لم يتم الرد"]
[88,null,null,null,"00:00:00",{"$error":"#NUM!"},null,"",null,0,"00:00:00",{"$error":"#NUM!"},"لم يتم الرد"]
[89,null,null,null,"00:00:00",{"$error":"#NUM!"},null,"",null,0,"00:00:00",{"$error":"#NUM!"},"لم يتم الرد"]
[90,null,null,null,"00:00:00",{"$error":"#NUM!"},null,"",null,0,"00:00:00",{"$error":"#NUM!"},"لم يتم الرد"]
[91,null,null,null,"00:00:00",{"$error":"#NUM!"},null,"",null,0,"00:00:00",{"$error":"#NUM!"},"لم يتم الرد"]
[92,null,null,null,"00:00:00",{"$error":"#NUM!"},null,"",null,0,"00:00:00",{"$error":"#NUM!"},"لم يتم الرد"]
[93,null,null,null,"00:00:00",{"$error":"#NUM!"},null,"",null,0,"00:00:00",{"$error":"#NUM!"},"لم يتم الرد"]
[94,null,null,null,"00:00:00",{"$error":"#NUM!"},null,"",null,0,"00:00:00",{"$error":"#NUM!"},"لم يتم الرد"]
[95,null,null,null,"00:00:00",{"$error":"#NUM!"},null,"",null,0,"00:00:00",{"$error":"#NUM!"},"لم يتم الرد"]
[96,null,null,null,"00:00:00",{"$error":"#NUM!"},null,"",null,0,"00:00:00",{"$error":"#NUM!"},"لم يتم الرد"]
[97,null,null,null,"00:00:00",{"$error":"#NUM!"},null,"",null,0,"00:00:00",{"$error":"#NUM!"},"لم يتم الرد"]
[98,null,null,null,"00:00:00",{"$error":"#NUM!"},null,"",null,0,"00:00:00",{"$error":"#NUM!"},"لم يتم الرد"]
[99,null,null,null,"00:00:00",{"$error":"#NUM!"},null,"",null,0,"00:00:00",{"$error":"#NUM!"},"لم يتم الرد"]
[100,null,null,null,"00:00:00",{"$error":"#NUM!"},null,"",null,0,"00:00:00",{"$error":"#NUM!"},"لم يتم الرد"]
[101,null,null,null,"00:00:00",{"$error":"#NUM!"},null,"",null,0,"00:00:00",{"$error":"#NUM!"},"لم يتم الرد"]
[102,null,null,null,"00:00:00",{"$error":"#NUM!"},null,"",null,0,"00:00:00",{"$error":"#NUM!"},"لم يتم الرد"]
[103,null,null,null,"00:00:00",{"$error":"#NUM!"},null,"",null,0,"00:00:00",{"$error":"#NUM!"},"لم يتم الرد"]
[104,null,null,null,"00:00:00",{"$error":"#NUM!"},null,"",null,0,"00:00:00",{"$error":"#NUM!"},"لم يتم الرد"]
[105,null,null,null,"00:00:00",{"$error":"#NUM!"},null,"",null,0,"00:00:00",{"$error":"#NUM!"},"لم يتم الرد"]
[106,null,null,null,"00:00:00",{"$error":"#NUM!"},null,"",null,0,"00:00:00",{"$error":"#NUM!"},"لم يتم الرد"]
[107,null,null,null,"00:00:00",{"$error":"#NUM!"},null,"",null,0,"00:00:00",{"$error":"#NUM!"},"لم يتم الرد"]
[108,null,null,null,"00:00:00",{"$error":"#NUM!"},null,"",null,0,"00:00:00",{"$error":"#NUM!"},"لم يتم الرد"]
[109,null,null,null,"00:00:00",{"$error":"#NUM!"},null,"",null,0,"00:00:00",{"$error":"#NUM!"},"لم يتم الرد"]
[110,null,null,null,"00:00:00",{"$error":"#NUM!"},null,"",null,0,"00:00:00",{"$error":"#NUM!"},"لم يتم الرد"]
[111,null,null,null,"00:00:00",{"$error":"#NUM!"},null,"",null,0,"00:00:00",{"$error":"#NUM!"},"لم يتم الرد"]
[112,null,null,null,"00:00:00",{"$error":"#NUM!"},null,"",null,0,"00:00:00",{"$error":"#NUM!"},"لم يتم الرد"]
[113,null,null,null,"00:00:00",{"$error":"#NUM!"},null,"",null,0,"00:00:00",{"$error":"#NUM!"},"لم يتم الرد"]
[114,null,null,null,"00:00:00",{"$error":"#NUM!"},null,"",null,0,"00:00:00",{"$error":"#NUM!"},"لم يتم الرد"]
[115,null,null,null,"00:00:00",{"$error":"#NUM!"},null,"",null,0,"00:00:00",{"$error":"#NUM!"},"لم يتم الرد"]
[116,null,null,null,"00:00:00",{"$error":"#NUM!"},null,"",null,0,"00:00:00",{"$error":"#NUM!"},"لم يتم الرد"]
[117,null,null,null,"00:00:00",{"$error":"#NUM!"},null,"",null,0,"00:00:00",{"$error":"#NUM!"},"لم يتم الرد"]
[118,null,null,null,"00:00:00",{"$error":"#NUM!"},null,"",null,0,"00:00:00",{"$error":"#NUM!"},"لم يتم الرد"]
[119,null,null,null,"00:00:00",{"$error":"#NUM!"},null,"",null,0,"00:00:00",{"$error":"#NUM!"},"لم يتم الرد"]
[120,null,null,null,"00:00:00",{"$error":"#NUM!"},null,"",null,0,"00:00:00",{"$error":"#NUM!"},"لم يتم الرد"]
[121,null,null,null,"00:00:00",{"$error":"#NUM!"},null,"",null,0,"00:00:00",{"$error":"#NUM!"},"لم يتم الرد"]
[122,null,null,null,"00:00:00",{"$error":"#NUM!"},null,"",null,0,"00:00:00",{"$error":"#NUM!"},"لم يتم الرد"]
[123,null,null,null,"00:00:00",{"$error":"#NUM!"},null,"",null,0,"00:00:00",{"$error":"#NUM!"},"لم يتم الرد"]
[124,null,null,null,"00:00:00",{"$error":"#NUM!"},null,"",null,0,"00:00:00",{"$error":"#NUM!"},"لم يتم الرد"]
[125,null,null,null,"00:00:00",{"$error":"#NUM!"},null,"",null,0,"00:00:00",{"$error":"#NUM!"},"لم يتم الرد"]
[126,null,null,null,"00:00:00",{"$error":"#NUM!"},null,"",null,0,"00:00:00",{"$error":"#NUM!"},"لم يتم الرد"]
[127,null,null,null,"00:00:00",{"$error":"#NUM!"},null,"",null,0,"00:00:00",{"$error":"#NUM!"},"لم يتم الرد"]
[128,null,null,null,"00:00:00",{"$error":"#NUM!"},null,"",null,0,"00:00:00",{"$error":"#NUM!"},"لم يتم الرد"]
[129,null,null,null,"00:00:00",{"$error":"#NUM!"},null,{"$f":"IF(J132=0,\"\",IF(G132>0,$N$4,IF(G132=0,$M$4,\"\")))","v":""},null,0,{"$f":"C132+D132+0","v":"00:00:00"},{"$f":"DATEDIF($K$1,K132,\"d\")","v":{"$error":"#NUM!"}},"لم يتم الرد"]
[130,null,null,null,{"$f":"C133+D133","v":"00:00:00"},{"$error":"#NUM!"},null,"",null,{"$f":"IFERROR(L133,0)","v":0},"00:00:00",{"$error":"#NUM!"},"لم يتم الرد"]
[131,null,null,null,"00:00:00",{"$f":"DATEDIF($K$1,K134,\"d\")+1","v":{"$error":"#NUM!"}},null,"",null,0,"00:00:00",{"$error":"#NUM!"},"لم يتم الرد"]
[132,null,null,null,"00:00:00",{"$error":"#NUM!"},null,"",null,0,"00:00:00",{"$error":"#NUM!"},"لم يتم الرد"]
[133,null,null,null,"00:00:00",{"$error":"#NUM!"},null,"",null,0,"00:00:00",{"$error":"#NUM!"},"لم يتم الرد"]
[134,null,null,null,"00:00:00",{"$error":"#NUM!"},null,"",null,0,"00:00:00",{"$error":"#NUM!"},"لم يتم الرد"]
[135,null,null,null,"00:00:00",{"$error":"#NUM!"},null,"",null,0,"00:00:00",{"$error":"#NUM!"},"لم يتم الرد"]
[136,null,null,null,"00:00:00",{"$error":"#NUM!"},null,"",null,0,"00:00:00",{"$error":"#NUM!"},"لم يتم الرد"]
[137,null,null,null,"00:00:00",{"$error":"#NUM!"},null,"",null,0,"00:00:00",{"$error":"#NUM!"},"لم يتم الرد"]
[138,null,null,null,"00:00:00",{"$error":"#NUM!"},null,"",null,0,"00:00:00",{"$error":"#NUM!"},"لم يتم الرد"]
[139,null,null,null,"00:00:00",{"$error":"#NUM!"},null,"",null,0,"00:00:00",{"$error":"#NUM!"},"لم يتم الرد"]
[140,null,null,null,"00:00:00",{"$error":"#NUM!"},null,"",null,0,"00:00:00",{"$error":"#NUM!"},"لم يتم الرد"]
[141,null,null,null,"00:00:00",{"$error":"#NUM!"},null,"",null,0,"00:00:00",{"$error":"#NUM!"},"لم يتم الرد"]
[142,null,null,null,"00:00:00",{"$error":"#NUM!"},null,"",null,0,"00:00:00",{"$error":"#NUM!"},"لم يتم الرد"]
[143,null,null,null,"00:00:00",{"$error":"#NUM!"},null,"",null,0,"00:00:00",{"$error":"#NUM!"},"لم يتم الرد"]
[144,null,null,null,"00:00:00",{"$error":"#NUM!"},null,"",null,0,"00:00:00",{"$error":"#NUM!"},"لم يتم الرد"]
[145,null,null,null,"00:00:00",{"$error":"#NUM!"},null,"",null,0,"00:00:00",{"$error":"#NUM!"},"لم يتم الرد"]
[146,null,null,null,"00:00:00",{"$error":"#NUM!"},null,"",null,0,"00:00:00",{"$error":"#NUM!"},"لم يتم الرد"]
[147,null,null,null,"00:00:00",{"$error":"#NUM!"},null,"",null,0,"00:00:00",{"$error":"#NUM!"},"لم يتم الرد"]
[148,null,null,null,"00:00:00",{"$error":"#NUM!"},null,"",null,0,"00:00:00",{"$error":"#NUM!"},"لم يتم الرد"]
[149,null,null,null,"00:00:00",{"$error":"#NUM!"},null,"",null,0,"00:00:00",{"$error":"#NUM!"},"لم يتم الرد"]
[150,null,null,null,"00:00:00",{"$error":"#NUM!"},null,"",null,0,"00:00:00",{"$error":"#NUM!"},"لم يتم الرد"]
[151,null,null,null,"00:00:00",{"$error":"#NUM!"},null,"",null,0,"00:00:00",{"$error":"#NUM!"},"لم يتم الرد"]
[152,null,null,null,"00:00:00",{"$error":"#NUM!"},null,"",null,0,"00:00:00",{"$error":"#NUM!"},"لم يتم الرد"]
[153,null,null,null,"00:00:00",{"$error":"#NUM!"},null,"",null,0,"00:00:00",{"$error":"#NUM!"},"لم يتم الرد"]
[154,null,null,null,"00:00:00",{"$error":"#NUM!"},null,"",null,0,"00:00:00",{"$error":"#NUM!"},"لم يتم الرد"]
[155,null,null,null,"00:00:00",{"$error":"#NUM!"},null,"",null,0,"00:00:00",{"$error":"#NUM!"},"لم يتم الرد"]
[156,null,null,null,"00:00:00",{"$error":"#NUM!"},null,"",null,0,"00:00:00",{"$error":"#NUM!"},"لم يتم الرد"]
[157,null,null,null,"00:00:00",{"$error":"#NUM!"},null,"",null,0,"00:00:00",{"$error":"#NUM!"},"لم يتم الرد"]
[158,null,null,null,"00:00:00",{"$error":"#NUM!"},null,"",null,0,"00:00:00",{"$error":"#NUM!"},"لم يتم الرد"]
[159,null,null,null,"00:00:00",{"$error":"#NUM!"},null,"",null,0,"00:00:00",{"$error":"#NUM!"},"لم يتم الرد"]
[160,null,null,null,"00:00:00",{"$error":"#NUM!"},null,"",null,0,"00:00:00",{"$error":"#NUM!"},"لم يتم الرد"]
[161,null,null,null,"00:00:00",{"$error":"#NUM!"},null,"",null,0,"00:00:00",{"$error":"#NUM!"},"لم يتم الرد"]
[162,null,null,null,"00:00:00",{"$error":"#NUM!"},null,"",null,0,"00:00:00",{"$error":"#NUM!"},"لم يتم الرد"]
[163,null,null,null,"00:00:00",{"$error":"#NUM!"},null,"",null,0,"00:00:00",{"$error":"#NUM!"},"لم يتم الرد"]
[164,null,null,null,"00:00:00",{"$error":"#NUM!"},null,"",null,0,"00:00:00",{"$error":"#NUM!"},"لم يتم الرد"]
[165,null,null,null,"00:00:00",{"$error":"#NUM!"},null,"",null,0,"00:00:00",{"$error":"#NUM!"},"لم يتم الرد"]
[166,null,null,null,"00:00:00",{"$error":"#NUM!"},null,"",null,0,"00:00:00",{"$error":"#NUM!"},"لم يتم الرد"]
[167,null,null,null,"00:00:00",{"$error":"#NUM!"},null,"",null,0,"00:00:00",{"$error":"#NUM!"},"لم يتم الرد"]
[168,null,null,null,"00:00:00",{"$error":"#NUM!"},null,"",null,0,"00:00:00",{"$error":"#NUM!"},"لم يتم الرد"]
[169,null,null,null,"00:00:00",{"$error":"#NUM!"},null,"",null,0,"00:00:00",{"$error":"#NUM!"},"لم يتم الرد"]
[170,null,null,null,"00:00:00",{"$error":"#NUM!"},null,"",null,0,"00:00:00",{"$error":"#NUM!"},"لم يتم الرد"]
[171,null,null,null,"00:00:00",{"$error":"#NUM!"},null,"",null,0,"00:00:00",{"$error":"#NUM!"},"لم يتم الرد"]
[172,null,null,null,"00:00:00",{"$error":"#NUM!"},null,"",null,0,"00:00:00",{"$error":"#NUM!"},"لم يتم الرد"]
[173,null,null,null,"00:00:00",{"$error":"#NUM!"},null,"",null,0,"00:00:00",{"$error":"#NUM!"},"لم يتم الرد"]
[174,null,null,null,"00:00:00",{"$error":"#NUM!"},null,"",null,0,"00:00:00",{"$error":"#NUM!"},"لم يتم الرد"]
[175,null,null,null,"00:00:00",{"$error":"#NUM!"},null,"",null,0,"00:00:00",{"$error":"#NUM!"},"لم يتم الرد"]
[176,null,null,null,"00:00:00",{"$error":"#NUM!"},null,"",null,0,"00:00:00",{"$error":"#NUM!"},"لم يتم الرد"]
[177,null,null,null,"00:00:00",{"$error":"#NUM!"},null,"",null,0,"00:00:00",{"$error":"#NUM!"},"لم يتم الرد"]
[178,null,null,null,"00:00:00",{"$error":"#NUM!"},null,"",null,0,"00:00:00",{"$error":"#NUM!"},"لم يتم الرد"]
[179,null,null,null,"00:00:00",{"$error":"#NUM!"},null,"",null,0,"00:00:00",{"$error":"#NUM!"},"لم يتم الرد"]
[180,null,null,null,"00:00:00",{"$error":"#NUM!"},null,"",null,0,"00:00:00",{"$error":"#NUM!"},"لم يتم الرد"]
[181,null,null,null,"00:00:00",{"$error":"#NUM!"},null,"",null,0,"00:00:00",{"$error":"#NUM!"},"لم يتم الرد"]
[182,null,null,null,"00:00:00",{"$error":"#NUM!"},null,"",null,0,"00:00:00",{"$error":"#NUM!"},"لم يتم الرد"]
[183,null,null,null,"00:00:00",{"$error":"#NUM!"},null,"",null,0,"00:00:00",{"$error":"#NUM!"},"لم يتم الرد"]
[184,null,null,null,"00:00:00",{"$error":"#NUM!"},null,"",null,0,"00:00:00",{"$error":"#NUM!"},"لم يتم الرد"]
[185,null,null,null,"00:00:00",{"$error":"#NUM!"},null,"",null,0,"00:00:00",{"$error":"#NUM!"},"لم يتم الرد"]
[186,null,null,null,"00:00:00",{"$error":"#NUM!"},null,"",null,0,"00:00:00",{"$error":"#NUM!"},"لم يتم الرد"]
[187,null,null,null,"00:00:00",{"$error":"#NUM!"},null,"",null,0,"00:00:00",{"$error":"#NUM!"},"لم يتم الرد"]
[188,null,null,null,"00:00:00",{"$error":"#NUM!"},null,"",null,0,"00:00:00",{"$error":"#NUM!"},"لم يتم الرد"]
[189,null,null,null,"00:00:00",{"$error":"#NUM!"},null,"",null,0,"00:00:00",{"$error":"#NUM!"},"لم يتم الرد"]
[190,null,null,null,"00:00:00",{"$error":"#NUM!"},null,"",null,0,"00:00:00",{"$error":"#NUM!"},"لم يتم الرد"]
[191,null,null,null,"00:00:00",{"$error":"#NUM!"},null,"",null,0,"00:00:00",{"$error":"#NUM!"},"لم يتم الرد"]
[192,null,null,null,"00:00:00",{"$error":"#NUM!"},null,"",null,0,"00:00:00",{"$error":"#NUM!"},"لم يتم الرد"]
[193,null,null,null,"00:00:00",{"$error":"#NUM!"},null,{"$f":"IF(J196=0,\"\",IF(G196>0,$N$4,IF(G196=0,$M$4,\"\")))","v":""},null,0,{"$f":"C196+D196+0","v":"00:00:00"},{"$f":"DATEDIF($K$1,K196,\"d\")","v":{"$error":"#NUM!"}},"لم يتم الرد"]
[194,null,null,null,{"$f":"C197+D197","v":"00:00:00"},{"$error":"#NUM!"},null,"",null,{"$f":"IFERROR(L197,0)","v":0},"00:00:00",{"$error":"#NUM!"},"لم يتم الرد"]
[195,null,null,null,"00:00:00",{"$f":"DATEDIF($K$1,K198,\"d\")+1","v":{"$error":"#NUM!"}},null,"",null,0,"00:00:00",{"$error":"#NUM!"},"لم يتم الرد"]
[196,null,null,null,"00:00:00",{"$error":"#NUM!"},null,"",null,0,"00:00:00",{"$error":"#NUM!"},"لم يتم الرد"]
[197,null,null,null,"00:00:00",{"$error":"#NUM!"},null,"",null,0,"00:00:00",{"$error":"#NUM!"},"لم يتم الرد"]
[198,null,null,null,"00:00:00",{"$error":"#NUM!"},null,"",null,0,"00:00:00",{"$error":"#NUM!"},"لم يتم الرد"]
[199,null,null,null,"00:00:00",{"$error":"#NUM!"},null,"",null,0,"00:00:00",{"$error":"#NUM!"},"لم يتم الرد"]
[200,null,null,null,"00:00:00",{"$error":"#NUM!"},null,"",null,0,"00:00:00",{"$error":"#NUM!"},"لم يتم الرد"]
[201,null,null,null,"00:00:00",{"$error":"#NUM!"},null,"",null,0,"00:00:00",{"$error":"#NUM!"},"لم يتم الرد"]
[202,null,null,null,"00:00:00",{"$error":"#NUM!"},null,"",null,0,"00:00:00",{"$error":"#NUM!"},"لم يتم الرد"]
[203,null,null,null,"00:00:00",{"$error":"#NUM!"},null,"",null,0,"00:00:00",{"$error":"#NUM!"},"لم يتم الرد"]
[204,null,null,null,"00:00:00",{"$error":"#NUM!"},null,"",null,0,"00:00:00",{"$error":"#NUM!"},"لم يتم الرد"]
[205,null,null,null,"00:00:00",{"$error":"#NUM!"},null,"",null,0,"00:00:00",{"$error":"#NUM!"},"لم يتم الرد"]
[206,null,null,null,"00:00:00",{"$error":"#NUM!"},null,"",null,0,"00:00:00",{"$error":"#NUM!"},"لم يتم الرد"]
[207,null,null,null,"00:00:00",{"$error":"#NUM!"},null,"",null,0,"00:00:00",{"$error":"#NUM!"},"لم يتم الرد"]
[208,null,null,null,"00:00:00",{"$error":"#NUM!"},null,"",null,0,"00:00:00",{"$error":"#NUM!"},"لم يتم الرد"]
[209,null,null,null,"00:00:00",{"$error":"#NUM!"},null,"",null,0,"00:00:00",{"$error":"#NUM!"},"لم يتم الرد"]
[210,null,null,null,"00:00:00",{"$error":"#NUM!"},null,"",null,0,"00:00:00",{"$error":"#NUM!"},"لم يتم الرد"]
[211,null,null,null,"00:00:00",{"$error":"#NUM!"},null,"",null,0,"00:00:00",{"$error":"#NUM!"},"لم يتم الرد"]
[212,null,null,null,"00:00:00",{"$error":"#NUM!"},null,"",null,0,"00:00:00",{"$error":"#NUM!"},"لم يتم الرد"]
[213,null,null,null,"00:00:00",{"$error":"#NUM!"},null,"",null,0,"00:00:00",{"$error":"#NUM!"},"لم يتم الرد"]
[214,null,null,null,"00:00:00",{"$error":"#NUM!"},null,"",null,0,"00:00:00",{"$error":"#NUM!"},"لم يتم الرد"]
[215,null,null,null,"00:00:00",{"$error":"#NUM!"},null,"",null,0,"00:00:00",{"$error":"#NUM!"},"لم يتم الرد"]
[216,null,null,null,"00:00:00",{"$error":"#NUM!"},null,"",null,0,"00:00:00",{"$error":"#NUM!"},"لم يتم الرد"]
[217,null,null,null,"00:00:00",{"$error":"#NUM!"},null,"",null,0,"00:00:00",{"$error":"#NUM!"},"لم يتم الرد"]
[218,null,null,null,"00:00:00",{"$error":"#NUM!"},null,"",null,0,"00:00:00",{"$error":"#NUM!"},"لم يتم الرد"]
[219,null,null,null,"00:00:00",{"$error":"#NUM!"},null,"",null,0,"00:00:00",{"$error":"#NUM!"},"لم يتم الرد"]
[220,null,null,null,"00:00:00",{"$error":"#NUM!"},null,"",null,0,"00:00:00",{"$error":"#NUM!"},"لم يتم الرد"]
[221,null,null,null,"00:00:00",{"$error":"#NUM!"},null,"",null,0,"00:00:00",{"$error":"#NUM!"},"لم يتم الرد"]
[222,null,null,null,"00:00:00",{"$error":"#NUM!"},null,"",null,0,"00:00:00",{"$error":"#NUM!"},"لم يتم الرد"]
[223,null,null,null,"00:00:00",{"$error":"#NUM!"},null,"",null,0,"00:00:00",{"$error":"#NUM!"},"لم يتم الرد"]
[224,null,null,null,"00:00:00",{"$error":"#NUM!"},null,"",null,0,"00:00:00",{"$error":"#NUM!"},"لم يتم الرد"]
[225,null,null,null,"00:00:00",{"$error":"#NUM!"},null,"",null,0,"00:00:00",{"$error":"#NUM!"},"لم يتم الرد"]
[226,null,null,null,"00:00:00",{"$error":"#NUM!"},null,"",null,0,"00:00:00",{"$error":"#NUM!"},"لم يتم الرد"]
[227,null,null,null,"00:00:00",{"$error":"#NUM!"},null,"",null,0,"00:00:00",{"$error":"#NUM!"},"لم يتم الرد"]
[228,null,null,null,"00:00:00",{"$error":"#NUM!"},null,"",null,0,"00:00:00",{"$error":"#NUM!"},"لم يتم الرد"]
[229,null,null,null,"00:00:00",{"$error":"#NUM!"},null,"",null,0,"00:00:00",{"$error":"#NUM!"},"لم يتم الرد"]
[230,null,null,null,"00:00:00",{"$error":"#NUM!"},null,"",null,0,"00:00:00",{"$error":"#NUM!"},"لم يتم الرد"]
[231,null,null,null,"00:00:00",{"$error":"#NUM!"},null,"",null,0,"00:00:00",{"$error":"#NUM!"},"لم يتم الرد"]
[232,null,null,null,"00:00:00",{"$error":"#NUM!"},null,"",null,0,"00:00:00",{"$error":"#NUM!"},"لم يتم الرد"]
[233,null,null,null,"00:00:00",{"$error":"#NUM!"},null,"",null,0,"00:00:00",{"$error":"#NUM!"},"لم يتم الرد"]
[234,null,null,null,"00:00:00",{"$error":"#NUM!"},null,"",null,0,"00:00:00",{"$error":"#NUM!"},"لم يتم الرد"]
[235,null,null,null,"00:00:00",{"$error":"#NUM!"},null,"",null,0,"00:00:00",{"$error":"#NUM!"},"لم يتم الرد"]
[236,null,null,null,"00:00:00",{"$error":"#NUM!"},null,"",null,0,"00:00:00",{"$error":"#NUM!"},"لم يتم الرد"]
[237,null,null,null,"00:00:00",{"$error":"#NUM!"},null,"",null,0,"00:00:00",{"$error":"#NUM!"},"لم يتم الرد"]
[238,null,null,null,"00:00:00",{"$error":"#NUM!"},null,"",null,0,"00:00:00",{"$error":"#NUM!"},"لم يتم الرد"]
[239,null,null,null,"00:00:00",{"$error":"#NUM!"},null,"",null,0,"00:00:00",{"$error":"#NUM!"},"لم يتم الرد"]
[240,null,null,null,"00:00:00",{"$error":"#NUM!"},null,"",null,0,"00:00:00",{"$error":"#NUM!"},"لم يتم الرد"]
[241,null,null,null,"00:00:00",{"$error":"#NUM!"},null,"",null,0,"00:00:00",{"$error":"#NUM!"},"لم يتم الرد"]
[242,null,null,null,"00:00:00",{"$error":"#NUM!"},null,"",null,0,"00:00:00",{"$error":"#NUM!"},"لم يتم الرد"]
[243,null,null,null,"00:00:00",{"$error":"#NUM!"},null,"",null,0,"00:00:00",{"$error":"#NUM!"},"لم يتم الرد"]
[244,null,null,null,"00:00:00",{"$error":"#NUM!"},null,"",null,0,"00:00:00",{"$error":"#NUM!"},"لم يتم الرد"]
[245,null,null,null,"00:00:00",{"$error":"#NUM!"},null,"",null,0,"00:00:00",{"$error":"#NUM!"},"لم يتم الرد"]
[246,null,null,null,"00:00:00",{"$error":"#NUM!"},null,"",null,0,"00:00:00",{"$error":"#NUM!"},"لم يتم الرد"]
[247,null,null,null,"00:00:00",{"$error":"#NUM!"},null,"",null,0,"00:00:00",{"$error":"#NUM!"},"لم يتم الرد"]
[248,null,null,null,"00:00:00",{"$error":"#NUM!"},null,"",null,0,"00:00:00",{"$error":"#NUM!"},"لم يتم الرد"]
[249,null,null,null,"00:00:00",{"$error":"#NUM!"},null,"",null,0,"00:00:00",{"$error":"#NUM!"},"لم يتم الرد"]
[250,null,null,null,"00:00:00",{"$error":"#NUM!"},null,"",null,0,"00:00:00",{"$error":"#NUM!"},"لم يتم الرد"]
[251,null,null,null,"00:00:00",{"$error":"#NUM!"},null,"",null,0,"00:00:00",{"$error":"#NUM!"},"لم يتم الرد"]
[252,null,null,null,"00:00:00",{"$error":"#NUM!"},null,"",null,0,"00:00:00",{"$error":"#NUM!"},"لم يتم الرد"]
[253,null,null,null,"00:00:00",{"$error":"#NUM!"},null,"",null,0,"00:00:00",{"$error":"#NUM!"},"لم يتم الرد"]
[254,null,null,null,"00:00:00",{"$error":"#NUM!"},null,"",null,0,"00:00:00",{"$error":"#NUM!"},"لم يتم الرد"]
[255,null,null,null,"00:00:00",{"$error":"#NUM!"},null,"",null,0,"00:00:00",{"$error":"#NUM!"},"لم يتم الرد"]
[256,null,null,null,"00:00:00",{"$error":"#NUM!"},null,"",null,0,"00:00:00",{"$error":"#NUM!"},"لم يتم الرد"]
[257,null,null,null,"00:00:00",{"$error":"#NUM!"},null,{"$f":"IF(J260=0,\"\",IF(G260>0,$N$4,IF(G260=0,$M$4,\"\")))","v":""},null,0,{"$f":"C260+D260+0","v":"00:00:00"},{"$f":"DATEDIF($K$1,K260,\"d\")","v":{"$error":"#NUM!"}},"لم يتم الرد"]
[258,null,null,null,{"$f":"C261+D261","v":"00:00:00"},{"$error":"#NUM!"},null,"",null,{"$f":"IFERROR(L261,0)","v":0},"00:00:00",{"$error":"#NUM!"},"لم يتم الرد"]
[259,null,null,null,"00:00:00",{"$f":"DATEDIF($K$1,K262,\"d\")+1","v":{"$error":"#NUM!"}},null,"",null,0,"00:00:00",{"$error":"#NUM!"},"لم يتم الرد"]
[260,null,null,null,"00:00:00",{"$error":"#NUM!"},null,"",null,0,"00:00:00",{"$error":"#NUM!"},"لم يتم الرد"]
[261,null,null,null,"00:00:00",{"$error":"#NUM!"},null,"",null,0,"00:00:00",{"$error":"#NUM!"},"لم يتم الرد"]
[262,null,null,null,"00:00:00",{"$error":"#NUM!"},null,"",null,0,"00:00:00",{"$error":"#NUM!"},"لم يتم الرد"]
[263,null,null,null,"00:00:00",{"$error":"#NUM!"},null,"",null,0,"00:00:00",{"$error":"#NUM!"},"لم يتم الرد"]
[264,null,null,null,"00:00:00",{"$error":"#NUM!"},null,"",null,0,"00:00:00",{"$error":"#NUM!"},"لم يتم الرد"]
[265,null,null,null,"00:00:00",{"$error":"#NUM!"},null,"",null,0,"00:00:00",{"$error":"#NUM!"},"لم يتم الرد"]
[266,null,null,null,"00:00:00",{"$error":"#NUM!"},null,"",null,0,"00:00:00",{"$error":"#NUM!"},"لم يتم الرد"]
[267,null,null,null,"00:00:00",{"$error":"#NUM!"},null,"",null,0,"00:00:00",{"$error":"#NUM!"},"لم يتم الرد"]
[268,null,null,null,"00:00:00",{"$error":"#NUM!"},null,"",null,0,"00:00:00",{"$error":"#NUM!"},"لم يتم الرد"]
[269,null,null,null,"00:00:00",{"$error":"#NUM!"},null,"",null,0,"00:00:00",{"$error":"#NUM!"},"لم يتم الرد"]
[270,null,null,null,"00:00:00",{"$error":"#NUM!"},null,"",null,0,"00:00:00",{"$error":"#NUM!"},"لم يتم الرد"]
[271,null,null,null,"00:00:00",{"$error":"#NUM!"},null,"",null,0,"00:00:00",{"$error":"#NUM!"},"لم يتم الرد"]
[272,null,null,null,"00:00:00",{"$error":"#NUM!"},null,"",null,0,"00:00:00",{"$error":"#NUM!"},"لم يتم الرد"]
[273,null,null,null,"00:00:00",{"$error":"#NUM!"},null,"",null,0,"00:00:00",{"$error":"#NUM!"},"لم يتم الرد"]
[274,null,null,null,"00:00:00",{"$error":"#NUM!"},null,"",null,0,"00:00:00",{"$error":"#NUM!"},"لم يتم الرد"]
[275,null,null,null,"00:00:00",{"$error":"#NUM!"},null,"",null,0,"00:00:00",{"$error":"#NUM!"},"لم يتم الرد"]
[276,null,null,null,"00:00:00",{"$error":"#NUM!"},null,"",null,0,"00:00:00",{"$error":"#NUM!"},"لم يتم الرد"]
[277,null,null,null,"00:00:00",{"$error":"#NUM!"},null,"",null,0,"00:00:00",{"$error":"#NUM!"},"لم يتم الرد"]
[278,null,null,null,"00:00:00",{"$error":"#NUM!"},null,"",null,0,"00:00:00",{"$error":"#NUM!"},"لم يتم الرد"]
[279,null,null,null,"00:00:00",{"$error":"#NUM!"},null,"",null,0,"00:00:00",{"$error":"#NUM!"},"لم يتم الرد"]
[280,null,null,null,"00:00:00",{"$error":"#NUM!"},null,"",null,0,"00:00:00",{"$error":"#NUM!"},"لم يتم الرد"]
[281,null,null,null,"00:00:00",{"$error":"#NUM!"},null,"",null,0,"00:00:00",{"$error":"#NUM!"},"لم يتم الرد"]
[282,null,null,null,"00:00:00",{"$error":"#NUM!"},null,"",null,0,"00:00:00",{"$error":"#NUM!"},"لم يتم الرد"]
[283,null,null,null,"00:00:00",{"$error":"#NUM!"},null,"",null,0,"00:00:00",{"$error":"#NUM!"},"لم يتم الرد"]
[284,null,null,null,"00:00:00",{"$error":"#NUM!"},null,"",null,0,"00:00:00",{"$error":"#NUM!"},"لم يتم الرد"]
[285,null,null,null,"00:00:00",{"$error":"#NUM!"},null,"",null,0,"00:00:00",{"$error":"#NUM!"},"لم يتم الرد"]
[286,null,null,null,"00:00:00",{"$error":"#NUM!"},null,"",null,0,"00:00:00",{"$error":"#NUM!"},"لم يتم الرد"]
[287,null,null,null,"00:00:00",{"$error":"#NUM!"},null,"",null,0,"00:00:00",{"$error":"#NUM!"},"لم يتم الرد"]
[288,null,null,null,"00:00:00",{"$error":"#NUM!"},null,"",null,0,"00:00:00",{"$error":"#NUM!"},"لم يتم الرد"]

{"sheet":"Sheet2","index":1,"n_rows":290,"n_cols":18,"rows_kept":290,"cut":false,"hidden":false,"merged":[]}
[]
[]
["م","وصف المعاملة","تاريخ المعاملة","ايام صلاحية المعاملة","تاريخ انتهاء المعاملة","عدد الايام المتبقية للمعاملة ","تم الرد في تاريخ ","الايام المتبقية"]
[]
[]
[null,null,null,null,null,null,null,null,null,null,null,null,null,null,{"$f":"IFERROR(Q6,0)","v":0},{"$f":"C6+D6+0","v":"00:00:00"},{"$f":"DATEDIF($P$1,P6,\"d\")","v":0},"لم يتم الرد"]
[null,null,null,null,null,null,null,null,null,null,null,null,null,null,0,"00:00:00",0,"لم يتم الرد"]
[null,null,null,null,null,null,null,null,null,null,null,null,null,null,0,"00:00:00",0,"لم يتم الرد"]
[null,null,null,null,null,null,null,null,null,null,null,null,null,null,0,"00:00:00",0,"لم يتم الرد"]
[null,null,null,null,null,null,null,null,null,null,null,null,null,null,0,"00:00:00",0,"لم يتم الرد"]
[null,null,null,null,null,null,null,null,null,null,null,null,null,null,0,"00:00:00",0,"لم يتم الرد"]
[null,null,null,null,null,null,null,null,null,null,null,null,null,null,0,"00:00:00",0,"لم يتم الرد"]
[null,null,null,null,null,null,null,null,null,null,null,null,null,null,0,"00:00:00",0,"لم يتم الرد"]
[null,null,null,null,null,null,null,null,null,null,null,null,null,null,0,"00:00:00",0,"لم يتم الرد"]
[null,null,null,null,null,null,null,null,null,null,null,null,null,null,0,"00:00:00",0,"لم يتم الرد"]
[null,null,null,null,null,null,null,null,null,null,null,null,null,null,0,"00:00:00",0,"لم يتم الرد"]
[null,null,null,null,null,null,null,null,null,null,null,null,null,null,0,"00:00:00",0,"لم يتم الرد"]
[null,null,null,null,null,null,null,null,null,null,null,null,null,null,0,"00:00:00",0,"لم يتم الرد"]
[null,null,null,null,null,null,null,null,null,null,null,null,null,null,0,"00:00:00",0,"لم يتم الرد"]
[null,null,null,null,null,null,null,null,null,null,null,null,null,null,0,"00:00:00",0,"لم يتم الرد"]
[null,null,null,null,null,null,null,null,null,null,null,null,null,null,0,"00:00:00",0,"لم يتم الرد"]
[null,null,null,null,null,null,null,null,null,null,null,null,null,null,0,"00:00:00",0,"لم يتم الرد"]
[null,null,null,null,null,null,null,null,null,null,null,null,null,null,0,"00:00:00",0,"لم يتم الرد"]
[null,null,null,null,null,null,null,null,null,null,null,null,null,null,0,"00:00:00",0,"لم يتم الرد"]
[null,null,null,null,null,null,null,null,null,null,null,null,null,null,0,"00:00:00",0,"لم يتم الرد"]
[null,null,null,null,null,null,null,null,null,null,null,null,null,null,0,"00:00:00",0,"لم يتم الرد"]
[null,null,null,null,null,null,null,null,null,null,null,null,null,null,0,"00:00:00",0,"لم يتم الرد"]
[null,null,null,null,null,null,null,null,null,null,null,null,null,null,0,"00:00:00",0,"لم يتم الرد"]
[null,null,null,null,null,null,null,null,null,null,null,null,null,null,0,"00:00:00",0,"لم يتم الرد"]
[null,null,null,null,null,null,null,null,null,null,null,null,null,null,0,"00:00:00",0,"لم يتم الرد"]
[null,null,null,null,null,null,null,null,null,null,null,null,null,null,0,"00:00:00",0,"لم يتم الرد"]
[null,null,null,null,null,null,null,null,null,null,null,null,null,null,0,"00:00:00",0,"لم يتم الرد"]
[null,null,null,null,null,null,null,null,null,null,null,null,null,null,0,"00:00:00",0,"لم يتم الرد"]
[null,null,null,null,null,null,null,null,null,null,null,null,null,null,0,"00:00:00",0,"لم يتم الرد"]
[null,null,null,null,null,null,null,null,null,null,null,null,null,null,0,"00:00:00",0,"لم يتم الرد"]
[null,null,null,null,null,null,null,null,null,null,null,null,null,null,0,"00:00:00",0,"لم يتم الرد"]
[null,null,null,null,null,null,null,null,null,null,null,null,null,null,0,"00:00:00",0,"لم يتم الرد"]
[null,null,null,null,null,null,null,null,null,null,null,null,null,null,0,"00:00:00",0,"لم يتم الرد"]
[null,null,null,null,null,null,null,null,null,null,null,null,null,null,0,"00:00:00",0,"لم يتم الرد"]
[null,null,null,null,null,null,null,null,null,null,null,null,null,null,0,"00:00:00",0,"لم يتم الرد"]
[null,null,null,null,null,null,null,null,null,null,null,null,null,null,0,"00:00:00",0,"لم يتم الرد"]
[null,null,null,null,null,null,null,null,null,null,null,null,null,null,0,"00:00:00",0,"لم يتم الرد"]
[null,null,null,null,null,null,null,null,null,null,null,null,null,null,0,"00:00:00",0,"لم يتم الرد"]
[null,null,null,null,null,null,null,null,null,null,null,null,null,null,0,"00:00:00",0,"لم يتم الرد"]
[null,null,null,null,null,null,null,null,null,null,null,null,null,null,0,"00:00:00",0,"لم يتم الرد"]
[null,null,null,null,null,null,null,null,null,null,null,null,null,null,0,"00:00:00",0,"لم يتم الرد"]
[null,null,null,null,null,null,null,null,null,null,null,null,null,null,0,"00:00:00",0,"لم يتم الرد"]
[null,null,null,null,null,null,null,null,null,null,null,null,null,null,0,"00:00:00",0,"لم يتم الرد"]
[null,null,null,null,null,null,null,null,null,null,null,null,null,null,0,"00:00:00",0,"لم يتم الرد"]
[null,null,null,null,null,null,null,null,null,null,null,null,null,null,0,"00:00:00",0,"لم يتم الرد"]
[null,null,null,null,null,null,null,null,null,null,null,null,null,null,0,"00:00:00",0,"لم يتم الرد"]
[null,null,null,null,null,null,null,null,null,null,null,null,null,null,0,"00:00:00",0,"لم يتم الرد"]
[null,null,null,null,null,null,null,null,null,null,null,null,null,null,0,"00:00:00",0,"لم يتم الرد"]
[null,null,null,null,null,null,null,null,null,null,null,null,null,null,0,"00:00:00",0,"لم يتم الرد"]
[null,null,null,null,null,null,null,null,null,null,null,null,null,null,0,"00:00:00",0,"لم يتم الرد"]
[null,null,null,null,null,null,null,null,null,null,null,null,null,null,0,"00:00:00",0,"لم يتم الرد"]
[null,null,null,null,null,null,null,null,null,null,null,null,null,null,0,"00:00:00",0,"لم يتم الرد"]
[null,null,null,null,null,null,null,null,null,null,null,null,null,null,0,"00:00:00",0,"لم يتم الرد"]
[null,null,null,null,null,null,null,null,null,null,null,null,null,null,0,"00:00:00",0,"لم يتم الرد"]
[null,null,null,null,null,null,null,null,null,null,null,null,null,null,0,"00:00:00",0,"لم يتم الرد"]
[null,null,null,null,null,null,null,null,null,null,null,null,null,null,0,"00:00:00",0,"لم يتم الرد"]
[null,null,null,null,null,null,null,null,null,null,null,null,null,null,0,"00:00:00",0,"لم يتم الرد"]
[null,null,null,null,null,null,null,null,null,null,null,null,null,null,0,"00:00:00",0,"لم يتم الرد"]
[null,null,null,null,null,null,null,null,null,null,null,null,null,null,0,"00:00:00",0,"لم يتم الرد"]
[null,null,null,null,null,null,null,null,null,null,null,null,null,null,0,"00:00:00",0,"لم يتم الرد"]
[null,null,null,null,null,null,null,null,null,null,null,null,null,null,0,"00:00:00",0,"لم يتم الرد"]
[null,null,null,null,null,null,null,null,null,null,null,null,null,null,0,"00:00:00",0,"لم يتم الرد"]
[null,null,null,null,null,null,null,null,null,null,null,null,null,null,0,"00:00:00",0,"لم يتم الرد"]
[null,null,null,null,null,null,null,null,null,null,null,null,null,null,{"$f":"IFERROR(Q69,0)","v":0},{"$f":"C69+D69+0","v":"00:00:00"},{"$f":"DATEDIF($P$1,P69,\"d\")","v":0},"لم يتم الرد"]
[null,null,null,null,null,null,null,null,null,null,null,null,null,null,0,"00:00:00",0,"لم يتم الرد"]
[null,null,null,null,null,null,null,null,null,null,null,null,null,null,0,"00:00:00",0,"لم يتم الرد"]
[null,null,null,null,null,null,null,null,null,null,null,null,null,null,0,"00:00:00",0,"لم يتم الرد"]
[null,null,null,null,null,null,null,null,null,null,null,null,null,null,0,"00:00:00",0,"لم يتم الرد"]
[null,null,null,null,null,null,null,null,null,null,null,null,null,null,0,"00:00:00",0,"لم يتم الرد"]
[null,null,null,null,null,null,null,null,null,null,null,null,null,null,0,"00:00:00",0,"لم يتم الرد"]
[null,null,null,null,null,null,null,null,null,null,null,null,null,null,0,"00:00:00",0,"لم يتم الرد"]
[null,null,null,null,null,null,null,null,null,null,null,null,null,null,0,"00:00:00",0,"لم يتم الرد"]
[null,null,null,null,null,null,null,null,null,null,null,null,null,null,0,"00:00:00",0,"لم يتم الرد"]
[null,null,null,null,null,null,null,null,null,null,null,null,null,null,0,"00:00:00",0,"لم يتم الرد"]
[null,null,null,null,null,null,null,null,null,null,null,null,null,null,0,"00:00:00",0,"لم يتم الرد"]
[null,null,null,null,null,null,null,null,null,null,null,null,null,null,0,"00:00:00",0,"لم يتم الرد"]
[null,null,null,null,null,null,null,null,null,null,null,null,null,null,0,"00:00:00",0,"لم يتم الرد"]
[null,null,null,null,null,null,null,null,null,null,null,null,null,null,0,"00:00:00",0,"لم يتم الرد"]
[null,null,null,null,null,null,null,null,null,null,null,null,null,null,0,"00:00:00",0,"لم يتم الرد"]
[null,null,null,null,null,null,null,null,null,null,null,null,null,null,0,"00:00:00",0,"لم يتم الرد"]
[null,null,null,null,null,null,null,null,null,null,null,null,null,null,0,"00:00:00",0,"لم يتم الرد"]
[null,null,null,null,null,null,null,null,null,null,null,null,null,null,0,"00:00:00",0,"لم يتم الرد"]
[null,null,null,null,null,null,null,null,null,null,null,null,null,null,0,"00:00:00",0,"لم يتم الرد"]
[null,null,null,null,null,null,null,null,null,null,null,null,null,null,0,"00:00:00",0,"لم يتم الرد"]
[null,null,null,null,null,null,null,null,null,null,null,null,null,null,0,"00:00:00",0,"لم يتم الرد"]
[null,null,null,null,null,null,null,null,null,null,null,null,null,null,0,"00:00:00",0,"لم يتم الرد"]
[null,null,null,null,null,null,null,null,null,null,null,null,null,null,0,"00:00:00",0,"لم يتم الرد"]
[null,null,null,null,null,null,null,null,null,null,null,null,null,null,0,"00:00:00",0,"لم يتم الرد"]
[null,null,null,null,null,null,null,null,null,null,null,null,null,null,0,"00:00:00",0,"لم يتم الرد"]
[null,null,null,null,null,null,null,null,null,null,null,null,null,null,0,"00:00:00",0,"لم يتم الرد"]
[null,null,null,null,null,null,null,null,null,null,null,null,null,null,0,"00:00:00",0,"لم يتم الرد"]
[null,null,null,null,null,null,null,null,null,null,null,null,null,null,0,"00:00:00",0,"لم يتم الرد"]
[null,null,null,null,null,null,null,null,null,null,null,null,null,null,0,"00:00:00",0,"لم يتم الرد"]
[null,null,null,null,null,null,null,null,null,null,null,null,null,null,0,"00:00:00",0,"لم يتم الرد"]
[null,null,null,null,null,null,null,null,null,null,null,null,null,null,0,"00:00:00",0,"لم يتم الرد"]
[null,null,null,null,null,null,null,null,null,null,null,null,null,null,0,"00:00:00",0,"لم يتم الرد"]
[null,null,null,null,null,null,null,null,null,null,null,null,null,null,0,"00:00:00",0,"لم يتم الرد"]
[null,null,null,null,null,null,null,null,null,null,null,null,null,null,0,"00:00:00",0,"لم يتم الرد"]
[null,null,null,null,null,null,null,null,null,null,null,null,null,null,0,"00:00:00",0,"لم يتم الرد"]
[null,null,null,null,null,null,null,null,null,null,null,null,null,null,0,"00:00:00",0,"لم يتم الرد"]
[null,null,null,null,null,null,null,null,null,null,null,null,null,null,0,"00:00:00",0,"لم يتم الرد"]
[null,null,null,null,null,null,null,null,null,null,null,null,null,null,0,"00:00:00",0,"لم يتم الرد"]
[null,null,null,null,null,null,null,null,null,null,null,null,null,null,0,"00:00:00",0,"لم يتم الرد"]
[null,null,null,null,null,null,null,null,null,null,null,null,null,null,0,"00:00:00",0,"لم يتم الرد"]
[null,null,null,null,null,null,null,null,null,null,null,null,null,null,0,"00:00:00",0,"لم يتم الرد"]
[null,null,null,null,null,null,null,null,null,null,null,null,null,null,0,"00:00:00",0,"لم يتم الرد"]
[null,null,null,null,null,null,null,null,null,null,null,null,null,null,0,"00:00:00",0,"لم يتم الرد"]
[null,null,null,null,null,null,null,null,null,null,null,null,null,null,0,"00:00:00",0,"لم يتم الرد"]
[null,null,null,null,null,null,null,null,null,null,null,null,null,null,0,"00:00:00",0,"لم يتم الرد"]
[null,null,null,null,null,null,null,null,null,null,null,null,null,null,0,"00:00:00",0,"لم يتم الرد"]
[null,null,null,null,null,null,null,null,null,null,null,null,null,null,0,"00:00:00",0,"لم يتم الرد"]
[null,null,null,null,null,null,null,null,null,null,null,null,null,null,0,"00:00:00",0,"لم يتم الرد"]
[null,null,null,null,null,null,null,null,null,null,null,null,null,null,0,"00:00:00",0,"لم يتم الرد"]
[null,null,null,null,null,null,null,null,null,null,null,null,null,null,0,"00:00:00",0,"لم يتم الرد"]
[null,null,null,null,null,null,null,null,null,null,null,null,null,null,0,"00:00:00",0,"لم يتم الرد"]
[null,null,null,null,null,null,null,null,null,null,null,null,null,null,0,"00:00:00",0,"لم يتم الرد"]
[null,null,null,null,null,null,null,null,null,null,null,null,null,null,0,"00:00:00",0,"لم يتم الرد"]
[null,null,null,null,null,null,null,null,null,null,null,null,null,null,0,"00:00:00",0,"لم يتم الرد"]
[null,null,null,null,null,null,null,null,null,null,null,null,null,null,0,"00:00:00",0,"لم يتم الرد"]
[null,null,null,null,null,null,null,null,null,null,null,null,null,null,0,"00:00:00",0,"لم يتم الرد"]
[null,null,null,null,null,null,null,null,null,null,null,null,null,null,0,"00:00:00",0,"لم يتم الرد"]
[null,null,null,null,null,null,null,null,null,null,null,null,null,null,0,"00:00:00",0,"لم يتم الرد"]
[null,null,null,null,null,null,null,null,null,null,null,null,null,null,0,"00:00:00",0,"لم يتم الرد"]
[null,null,null,null,null,null,null,null,null,null,null,null,null,null,0,"00:00:00",0,"لم يتم الرد"]
[null,null,null,null,null,null,null,null,null,null,null,null,null,null,0,"00:00:00",0,"لم يتم الرد"]
[null,null,null,null,null,null,null,null,null,null,null,null,null,null,0,"00:00:00",0,"لم يتم الرد"]
[null,null,null,null,null,null,null,null,null,null,null,null,null,null,0,"00:00:00",0,"لم يتم الرد"]
[null,null,null,null,null,null,null,null,null,null,null,null,null,null,{"$f":"IFERROR(Q133,0)","v":0},{"$f":"C133+D133+0","v":"00:00:00"},{"$f":"DATEDIF($P$1,P133,\"d\")","v":0},"لم يتم الرد"]
[null,null,null,null,null,null,null,null,null,null,null,null,null,null,0,"00:00:00",0,"لم يتم الرد"]
[null,null,null,null,null,null,null,null,null,null,null,null,null,null,0,"00:00:00",0,"لم يتم الرد"]
[null,null,null,null,null,null,null,null,null,null,null,null,null,null,0,"00:00:00",0,"لم يتم الرد"]
[null,null,null,null,null,null,null,null,null,null,null,null,null,null,0,"00:00:00",0,"لم يتم الرد"]
[null,null,null,null,null,null,null,null,null,null,null,null,null,null,0,"00:00:00",0,"لم يتم الرد"]
[null,null,null,null,null,null,null,null,null,null,null,null,null,null,0,"00:00:00",0,"لم يتم الرد"]
[null,null,null,null,null,null,null,null,null,null,null,null,null,null,0,"00:00:00",0,"لم يتم الرد"]
[null,null,null,null,null,null,null,null,null,null,null,null,null,null,0,"00:00:00",0,"لم يتم الرد"]
[null,null,null,null,null,null,null,null,null,null,null,null,null,null,0,"00:00:00",0,"لم يتم الرد"]
[null,null,null,null,null,null,null,null,null,null,null,null,null,null,0,"00:00:00",0,"لم يتم الرد"]
[null,null,null,null,null,null,null,null,null,null,null,null,null,null,0,"00:00:00",0,"لم يتم الرد"]
[null,null,null,null,null,null,null,null,null,null,null,null,null,null,0,"00:00:00",0,"لم يتم الرد"]
[null,null,null,null,null,null,null,null,null,null,null,null,null,null,0,"00:00:00",0,"لم يتم الرد"]
[null,null,null,null,null,null,null,null,null,null,null,null,null,null,0,"00:00:00",0,"لم يتم الرد"]
[null,null,null,null,null,null,null,null,null,null,null,null,null,null,0,"00:00:00",0,"لم يتم الرد"]
[null,null,null,null,null,null,null,null,null,null,null,null,null,null,0,"00:00:00",0,"لم يتم الرد"]
[null,null,null,null,null,null,null,null,null,null,null,null,null,null,0,"00:00:00",0,"لم يتم الرد"]
[null,null,null,null,null,null,null,null,null,null,null,null,null,null,0,"00:00:00",0,"لم يتم الرد"]
[null,null,null,null,null,null,null,null,null,null,null,null,null,null,0,"00:00:00",0,"لم يتم الرد"]
[null,null,null,null,null,null,null,null,null,null,null,null,null,null,0,"00:00:00",0,"لم يتم الرد"]
[null,null,null,null,null,null,null,null,null,null,null,null,null,null,0,"00:00:00",0,"لم يتم الرد"]
[null,null,null,null,null,null,null,null,null,null,null,null,null,null,0,"00:00:00",0,"لم يتم الرد"]
[null,null,null,null,null,null,null,null,null,null,null,null,null,null,0,"00:00:00",0,"لم يتم الرد"]
[null,null,null,null,null,null,null,null,null,null,null,null,null,null,0,"00:00:00",0,"لم يتم الرد"]
[null,null,null,null,null,null,null,null,null,null,null,null,null,null,0,"00:00:00",0,"لم يتم الرد"]
[null,null,null,null,null,null,null,null,null,null,null,null,null,null,0,"00:00:00",0,"لم يتم الرد"]
[null,null,null,null,null,null,null,null,null,null,null,null,null,null,0,"00:00:00",0,"لم يتم الرد"]
[null,null,null,null,null,null,null,null,null,null,null,null,null,null,0,"00:00:00",0,"لم يتم الرد"]
[null,null,null,null,null,null,null,null,null,null,null,null,null,null,0,"00:00:00",0,"لم يتم الرد"]
[null,null,null,null,null,null,null,null,null,null,null,null,null,null,0,"00:00:00",0,"لم يتم الرد"]
[null,null,null,null,null,null,null,null,null,null,null,null,null,null,0,"00:00:00",0,"لم يتم الرد"]
[null,null,null,null,null,null,null,null,null,null,null,null,null,null,0,"00:00:00",0,"لم يتم الرد"]
[null,null,null,null,null,null,null,null,null,null,null,null,null,null,0,"00:00:00",0,"لم يتم الرد"]
[null,null,null,null,null,null,null,null,null,null,null,null,null,null,0,"00:00:00",0,"لم يتم الرد"]
[null,null,null,null,null,null,null,null,null,null,null,null,null,null,0,"00:00:00",0,"لم يتم الرد"]
[null,null,null,null,null,null,null,null,null,null,null,null,null,null,0,"00:00:00",0,"لم يتم الرد"]
[null,null,null,null,null,null,null,null,null,null,null,null,null,null,0,"00:00:00",0,"لم يتم الرد"]
[null,null,null,null,null,null,null,null,null,null,null,null,null,null,0,"00:00:00",0,"لم يتم الرد"]
[null,null,null,null,null,null,null,null,null,null,null,null,null,null,0,"00:00:00",0,"لم يتم الرد"]
[null,null,null,null,null,null,null,null,null,null,null,null,null,null,0,"00:00:00",0,"لم يتم الرد"]
[null,null,null,null,null,null,null,null,null,null,null,null,null,null,0,"00:00:00",0,"لم يتم الرد"]
[null,null,null,null,null,null,null,null,null,null,null,null,null,null,0,"00:00:00",0,"لم يتم الرد"]
[null,null,null,null,null,null,null,null,null,null,null,null,null,null,0,"00:00:00",0,"لم يتم الرد"]
[null,null,null,null,null,null,null,null,null,null,null,null,null,null,0,"00:00:00",0,"لم يتم الرد"]
[null,null,null,null,null,null,null,null,null,null,null,null,null,null,0,"00:00:00",0,"لم يتم الرد"]
[null,null,null,null,null,null,null,null,null,null,null,null,null,null,0,"00:00:00",0,"لم يتم الرد"]
[null,null,null,null,null,null,null,null,null,null,null,null,null,null,0,"00:00:00",0,"لم يتم الرد"]
[null,null,null,null,null,null,null,null,null,null,null,null,null,null,0,"00:00:00",0,"لم يتم الرد"]
[null,null,null,null,null,null,null,null,null,null,null,null,null,null,0,"00:00:00",0,"لم يتم الرد"]
[null,null,null,null,null,null,null,null,null,null,null,null,null,null,0,"00:00:00",0,"لم يتم الرد"]
[null,null,null,null,null,null,null,null,null,null,null,null,null,null,0,"00:00:00",0,"لم يتم الرد"]
[null,null,null,null,null,null,null,null,null,null,null,null,null,null,0,"00:00:00",0,"لم يتم الرد"]
[null,null,null,null,null,null,null,null,null,null,null,null,null,null,0,"00:00:00",0,"لم يتم الرد"]
[null,null,null,null,null,null,null,null,null,null,null,null,null,null,0,"00:00:00",0,"لم يتم الرد"]
[null,null,null,null,null,null,null,null,null,null,null,null,null,null,0,"00:00:00",0,"لم يتم الرد"]
[null,null,null,null,null,null,null,null,null,null,null,null,null,null,0,"00:00:00",0,"لم يتم الرد"]
[null,null,null,null,null,null,null,null,null,null,null,null,null,null,0,"00:00:00",0,"لم يتم الرد"]
[null,null,null,null,null,null,null,null,null,null,null,null,null,null,0,"00:00:00",0,"لم يتم الرد"]
[null,null,null,null,null,null,null,null,null,null,null,null,null,null,0,"00:00:00",0,"لم يتم الرد"]
[null,null,null,null,null,null,null,null,null,null,null,null,null,null,0,"00:00:00",0,"لم يتم الرد"]
[null,null,null,null,null,null,null,null,null,null,null,null,null,null,0,"00:00:00",0,"لم يتم الرد"]
[null,null,null,null,null,null,null,null,null,null,null,null,null,null,0,"00:00:00",0,"لم يتم الرد"]
[null,null,null,null,null,null,null,null,null,null,null,null,null,null,0,"00:00:00",0,"لم يتم الرد"]
[null,null,null,null,null,null,null,null,null,null,null,null,null,null,{"$f":"IFERROR(Q197,0)","v":0},{"$f":"C197+D197+0","v":"00:00:00"},{"$f":"DATEDIF($P$1,P197,\"d\")","v":0},"لم يتم الرد"]
[null,null,null,null,null,null,null,null,null,null,null,null,null,null,0,"00:00:00",0,"لم يتم الرد"]
[null,null,null,null,null,null,null,null,null,null,null,null,null,null,0,"00:00:00",0,"لم يتم الرد"]
[null,null,null,null,null,null,null,null,null,null,null,null,null,null,0,"00:00:00",0,"لم يتم الرد"]
[null,null,null,null,null,null,null,null,null,null,null,null,null,null,0,"00:00:00",0,"لم يتم الرد"]
[null,null,null,null,null,null,null,null,null,null,null,null,null,null,0,"00:00:00",0,"لم يتم الرد"]
[null,null,null,null,null,null,null,null,null,null,null,null,null,null,0,"00:00:00",0,"لم يتم الرد"]
[null,null,null,null,null,null,null,null,null,null,null,null,null,null,0,"00:00:00",0,"لم يتم الرد"]
[null,null,null,null,null,null,null,null,null,null,null,null,null,null,0,"00:00:00",0,"لم يتم الرد"]
[null,null,null,null,null,null,null,null,null,null,null,null,null,null,0,"00:00:00",0,"لم يتم الرد"]
[null,null,null,null,null,null,null,null,null,null,null,null,null,null,0,"00:00:00",0,"لم يتم الرد"]
[null,null,null,null,null,null,null,null,null,null,null,null,null,null,0,"00:00:00",0,"لم يتم الرد"]
[null,null,null,null,null,null,null,null,null,null,null,null,null,null,0,"00:00:00",0,"لم يتم الرد"]
[null,null,null,null,null,null,null,null,null,null,null,null,null,null,0,"00:00:00",0,"لم يتم الرد"]
[null,null,null,null,null,null,null,null,null,null,null,null,null,null,0,"00:00:00",0,"لم يتم الرد"]
[null,null,null,null,null,null,null,null,null,null,null,null,null,null,0,"00:00:00",0,"لم يتم الرد"]
[null,null,null,null,null,null,null,null,null,null,null,null,null,null,0,"00:00:00",0,"لم يتم الرد"]
[null,null,null,null,null,null,null,null,null,null,null,null,null,null,0,"00:00:00",0,"لم يتم الرد"]
[null,null,null,null,null,null,null,null,null,null,null,null,null,null,0,"00:00:00",0,"لم يتم الرد"]
[null,null,null,null,null,null,null,null,null,null,null,null,null,null,0,"00:00:00",0,"لم يتم الرد"]
[null,null,null,null,null,null,null,null,null,null,null,null,null,null,0,"00:00:00",0,"لم يتم الرد"]
[null,null,null,null,null,null,null,null,null,null,null,null,null,null,0,"00:00:00",0,"لم يتم الرد"]
[null,null,null,null,null,null,null,null,null,null,null,null,null,null,0,"00:00:00",0,"لم يتم الرد"]
[null,null,null,null,null,null,null,null,null,null,null,null,null,null,0,"00:00:00",0,"لم يتم الرد"]
[null,null,null,null,null,null,null,null,null,null,null,null,null,null,0,"00:00:00",0,"لم يتم الرد"]
[null,null,null,null,null,null,null,null,null,null,null,null,null,null,0,"00:00:00",0,"لم يتم الرد"]
[null,null,null,null,null,null,null,null,null,null,null,null,null,null,0,"00:00:00",0,"لم يتم الرد"]
[null,null,null,null,null,null,null,null,null,null,null,null,null,null,0,"00:00:00",0,"لم يتم الرد"]
[null,null,null,null,null,null,null,null,null,null,null,null,null,null,0,"00:00:00",0,"لم يتم الرد"]
[null,null,null,null,null,null,null,null,null,null,null,null,null,null,0,"00:00:00",0,"لم يتم الرد"]
[null,null,null,null,null,null,null,null,null,null,null,null,null,null,0,"00:00:00",0,"لم يتم الرد"]
[null,null,null,null,null,null,null,null,null,null,null,null,null,null,0,"00:00:00",0,"لم يتم الرد"]
[null,null,null,null,null,null,null,null,null,null,null,null,null,null,0,"00:00:00",0,"لم يتم الرد"]
[null,null,null,null,null,null,null,null,null,null,null,null,null,null,0,"00:00:00",0,"لم يتم الرد"]
[null,null,null,null,null,null,null,null,null,null,null,null,null,null,0,"00:00:00",0,"لم يتم الرد"]
[null,null,null,null,null,null,null,null,null,null,null,null,null,null,0,"00:00:00",0,"لم يتم الرد"]
[null,null,null,null,null,null,null,null,null,null,null,null,null,null,0,"00:00:00",0,"لم يتم الرد"]
[null,null,null,null,null,null,null,null,null,null,null,null,null,null,0,"00:00:00",0,"لم يتم الرد"]
[null,null,null,null,null,null,null,null,null,null,null,null,null,null,0,"00:00:00",0,"لم يتم الرد"]
[null,null,null,null,null,null,null,null,null,null,null,null,null,null,0,"00:00:00",0,"لم يتم الرد"]
[null,null,null,null,null,null,null,null,null,null,null,null,null,null,0,"00:00:00",0,"لم يتم الرد"]
[null,null,null,null,null,null,null,null,null,null,null,null,null,null,0,"00:00:00",0,"لم يتم الرد"]
[null,null,null,null,null,null,null,null,null,null,null,null,null,null,0,"00:00:00",0,"لم يتم الرد"]
[null,null,null,null,null,null,null,null,null,null,null,null,null,null,0,"00:00:00",0,"لم يتم الرد"]
[null,null,null,null,null,null,null,null,null,null,null,null,null,null,0,"00:00:00",0,"لم يتم الرد"]
[null,null,null,null,null,null,null,null,null,null,null,null,null,null,0,"00:00:00",0,"لم يتم الرد"]
[null,null,null,null,null,null,null,null,null,null,null,null,null,null,0,"00:00:00",0,"لم يتم الرد"]
[null,null,null,null,null,null,null,null,null,null,null,null,null,null,0,"00:00:00",0,"لم يتم الرد"]
[null,null,null,null,null,null,null,null,null,null,null,null,null,null,0,"00:00:00",0,"لم يتم الرد"]
[null,null,null,null,null,null,null,null,null,null,null,null,null,null,0,"00:00:00",0,"لم يتم الرد"]
[null,null,null,null,null,null,null,null,null,null,null,null,null,null,0,"00:00:00",0,"لم يتم الرد"]
[null,null,null,null,null,null,null,null,null,null,null,null,null,null,0,"00:00:00",0,"لم يتم الرد"]
[null,null,null,null,null,null,null,null,null,null,null,null,null,null,0,"00:00:00",0,"لم يتم الرد"]
[null,null,null,null,null,null,null,null,null,null,null,null,null,null,0,"00:00:00",0,"لم يتم الرد"]
[null,null,null,null,null,null,null,null,null,null,null,null,null,null,0,"00:00:00",0,"لم يتم الرد"]
[null,null,null,null,null,null,null,null,null,null,null,null,null,null,0,"00:00:00",0,"لم يتم الرد"]
[null,null,null,null,null,null,null,null,null,null,null,null,null,null,0,"00:00:00",0,"لم يتم الرد"]
[null,null,null,null,null,null,null,null,null,null,null,null,null,null,0,"00:00:00",0,"لم يتم الرد"]
[null,null,null,null,null,null,null,null,null,null,null,null,null,null,0,"00:00:00",0,"لم يتم الرد"]
[null,null,null,null,null,null,null,null,null,null,null,null,null,null,0,"00:00:00",0,"لم يتم الرد"]
[null,null,null,null,null,null,null,null,null,null,null,null,null,null,0,"00:00:00",0,"لم يتم الرد"]
[null,null,null,null,null,null,null,null,null,null,null,null,null,null,0,"00:00:00",0,"لم يتم الرد"]
[null,null,null,null,null,null,null,null,null,null,null,null,null,null,0,"00:00:00",0,"لم يتم الرد"]
[null,null,null,null,null,null,null,null,null,null,null,null,null,null,0,"00:00:00",0,"لم يتم الرد"]
[null,null,null,null,null,null,null,null,null,null,null,null,null,null,{"$f":"IFERROR(Q261,0)","v":0},{"$f":"C261+D261+0","v":"00:00:00"},{"$f":"DATEDIF($P$1,P261,\"d\")","v":0},"لم يتم الرد"]
[null,null,null,null,null,null,null,null,null,null,null,null,null,null,0,"00:00:00",0,"لم يتم الرد"]
[null,null,null,null,null,null,null,null,null,null,null,null,null,null,0,"00:00:00",0,"لم يتم الرد"]
[null,null,null,null,null,null,null,null,null,null,null,null,null,null,0,"00:00:00",0,"لم يتم الرد"]
[null,null,null,null,null,null,null,null,null,null,null,null,null,null,0,"00:00:00",0,"لم يتم الرد"]
[null,null,null,null,null,null,null,null,null,null,null,null,null,null,0,"00:00:00",0,"لم يتم الرد"]
[null,null,null,null,null,null,null,null,null,null,null,null,null,null,0,"00:00:00",0,"لم يتم الرد"]
[null,null,null,null,null,null,null,null,null,null,null,null,null,null,0,"00:00:00",0,"لم يتم الرد"]
[null,null,null,null,null,null,null,null,null,null,null,null,null,null,0,"00:00:00",0,"لم يتم الرد"]
[null,null,null,null,null,null,null,null,null,null,null,null,null,null,0,"00:00:00",0,"لم يتم الرد"]
[null,null,null,null,null,null,null,null,null,null,null,null,null,null,0,"00:00:00",0,"لم يتم الرد"]
[null,null,null,null,null,null,null,null,null,null,null,null,null,null,0,"00:00:00",0,"لم يتم الرد"]
[null,null,null,null,null,null,null,null,null,null,null,null,null,null,0,"00:00:00",0,"لم يتم الرد"]
[null,null,null,null,null,null,null,null,null,null,null,null,null,null,0,"00:00:00",0,"لم يتم الرد"]
[null,null,null,null,null,null,null,null,null,null,null,null,null,null,0,"00:00:00",0,"لم يتم الرد"]
[null,null,null,null,null,null,null,null,null,null,null,null,null,null,0,"00:00:00",0,"لم يتم الرد"]
[null,null,null,null,null,null,null,null,null,null,null,null,null,null,0,"00:00:00",0,"لم يتم الرد"]
[null,null,null,null,null,null,null,null,null,null,null,null,null,null,0,"00:00:00",0,"لم يتم الرد"]
[null,null,null,null,null,null,null,null,null,null,null,null,null,null,0,"00:00:00",0,"لم يتم الرد"]
[null,null,null,null,null,null,null,null,null,null,null,null,null,null,0,"00:00:00",0,"لم يتم الرد"]
[null,null,null,null,null,null,null,null,null,null,null,null,null,null,0,"00:00:00",0,"لم يتم الرد"]
[null,null,null,null,null,null,null,null,null,null,null,null,null,null,0,"00:00:00",0,"لم يتم الرد"]
[null,null,null,null,null,null,null,null,null,null,null,null,null,null,0,"00:00:00",0,"لم يتم الرد"]
[null,null,null,null,null,null,null,null,null,null,null,null,null,null,0,"00:00:00",0,"لم يتم الرد"]
[null,null,null,null,null,null,null,null,null,null,null,null,null,null,0,"00:00:00",0,"لم يتم الرد"]
[null,null,null,null,null,null,null,null,null,null,null,null,null,null,0,"00:00:00",0,"لم يتم الرد"]
[null,null,null,null,null,null,null,null,null,null,null,null,null,null,0,"00:00:00",0,"لم يتم الرد"]
[null,null,null,null,null,null,null,null,null,null,null,null,null,null,0,"00:00:00",0,"لم يتم الرد"]
[null,null,null,null,null,null,null,null,null,null,null,null,null,null,0,"00:00:00",0,"لم يتم الرد"]
[null,null,null,null,null,null,null,null,null,null,null,null,null,null,0,"00:00:00",0,"لم يتم الرد"]

{"sheet":"Sheet3","index":2,"n_rows":0,"n_cols":0,"rows_kept":0,"cut":false,"hidden":false,"merged":[]}